[Event "December 19 Late 2023"]
[Site "https://www.chess.com"]
[Date "2023.12.19"]
[Round "8"]
[White "Tari, Aryan"]
[Black "Esipenko, Andrey"]
[Result "0-1"]
[Board "4"]
[TimeControl "180+1"]
[WhiteFideId "1510045"]
[BlackFideId "24175439"]
[WhiteElo "2577"]
[BlackElo "2615"]
[WhiteTeam "NOR"]
[BlackTeam "FID"]
[WhiteClock "0:00:00"]
[BlackClock "0:00:03"]

1. e4 {[%clk 0:03:00]}  e5 {[%clk 0:02:58]} 2. Nf3 {[%clk 0:03:01]}  Nc6 {[%clk 0:02:58]} 3. Nc3 {[%clk 0:02:59]}  Nf6 {[%clk 0:02:56]} 4. a3 {[%clk 0:03:00]}  d5 {[%clk 0:02:41]} 5. Bb5 {[%clk 0:03:00]}  Nxe4 {[%clk 0:02:39]} 6. Qe2 {[%clk 0:02:59]}  Qd6 {[%clk 0:02:36]} 7. Nxe4 {[%clk 0:02:59]}  dxe4 {[%clk 0:02:36]} 8. Qxe4 {[%clk 0:03:00]}  Bd7 {[%clk 0:02:36]} 9. d4 {[%clk 0:02:59]}  O-O-O {[%clk 0:02:36]} 10. dxe5 {[%clk 0:02:58]}  Nxe5 {[%clk 0:02:37]} 11. Bxd7+ {[%clk 0:02:55]}  Qxd7 {[%clk 0:02:38]} 12. O-O {[%clk 0:02:54]}  Nxf3+ {[%clk 0:02:35]} 13. Qxf3 {[%clk 0:02:55]}  Bc5 {[%clk 0:02:31]} 14. Be3 {[%clk 0:02:53]}  Bxe3 {[%clk 0:02:29]} 15. Qxe3 {[%clk 0:02:54]}  Qd4 {[%clk 0:02:27]} 16. Qxd4 {[%clk 0:02:32]}  Rxd4 {[%clk 0:02:28]} 17. Rfe1 {[%clk 0:02:32]}  Rhd8 {[%clk 0:02:12]} 18. Kf1 {[%clk 0:02:28]}  b5 {[%clk 0:02:07]} 19. g3 {[%clk 0:02:25]}  R8d7 {[%clk 0:02:04]} 20. Re8+ {[%clk 0:02:24]}  Kb7 {[%clk 0:02:04]} 21. Rae1 {[%clk 0:02:24]}  a5 {[%clk 0:02:01]} 22. h4 {[%clk 0:02:22]}  a4 {[%clk 0:01:54]} 23. R1e5 {[%clk 0:01:51]}  Kc6 {[%clk 0:01:47]} 24. Re3 {[%clk 0:01:44]}  Rc4 {[%clk 0:01:47]} 25. c3 {[%clk 0:01:44]}  Rc5 {[%clk 0:01:43]} 26. R8e7 {[%clk 0:01:21]}  Rcd5 {[%clk 0:01:43]} 27. Rxd7 {[%clk 0:01:21]}  Rxd7 {[%clk 0:01:43]} 28. Ke2 {[%clk 0:01:21]}  Kc5 {[%clk 0:01:43]} 29. Re5+ {[%clk 0:01:16]}  Kc4 {[%clk 0:00:53]} 30. Re4+ {[%clk 0:01:16]}  Kc5 {[%clk 0:00:52]} 31. Re5+ {[%clk 0:01:16]}  Kc4 {[%clk 0:00:50]} 32. Re4+ {[%clk 0:01:16]}  Kb3 {[%clk 0:00:48]} 33. Rb4+ {[%clk 0:01:16]}  Kc2 {[%clk 0:00:48]} 34. Rxb5 {[%clk 0:01:15]}  c5 {[%clk 0:00:49]} 35. h5 {[%clk 0:00:31]}  h6 {[%clk 0:00:34]} 36. g4 {[%clk 0:00:31]}  f5 {[%clk 0:00:31]} 37. f3 {[%clk 0:00:20]}  Re7+ {[%clk 0:00:30]} 38. Kf2 {[%clk 0:00:20]}  f4 {[%clk 0:00:30]} 39. c4 {[%clk 0:00:14]}  Kd3 {[%clk 0:00:14]} 40. Rxc5 {[%clk 0:00:13]}  Re2+ {[%clk 0:00:14]} 41. Kf1 {[%clk 0:00:13]}  Rxb2 {[%clk 0:00:15]} 42. Rb5 {[%clk 0:00:10]}  Ra2 {[%clk 0:00:13]} 43. c5 {[%clk 0:00:09]}  Ke3 {[%clk 0:00:10]} 44. c6 {[%clk 0:00:04]}  Kxf3 {[%clk 0:00:10]} 45. Ke1 {[%clk 0:00:04]}  Rc2 {[%clk 0:00:11]} 46. Rb4 {[%clk 0:00:01]}  Rxc6 {[%clk 0:00:10]} 47. Rxa4 {[%clk 0:00:02]}  Kxg4 {[%clk 0:00:10]} 48. Ra7 {[%clk 0:00:02]}  Rc1+ {[%clk 0:00:03]} 49. Kf2 {[%clk 0:00:01]}  Rc2+ {[%clk 0:00:02]} 50. Ke1 {[%clk 0:00:02]}  Kf3 {[%clk 0:00:02]} 51. Rxg7 {[%clk 0:00:00]}  Rh2 {[%clk 0:00:03]} 0-1

[Event "December 19 Late 2023"]
[Site "https://www.chess.com"]
[Date "2023.12.19"]
[Round "8"]
[White "Ibarra Jerez, Jose Carlos"]
[Black "Keymer, Vincent"]
[Result "0-1"]
[Board "9"]
[TimeControl "180+1"]
[WhiteFideId "2226332"]
[BlackFideId "12940690"]
[WhiteElo "2634"]
[BlackElo "2629"]
[WhiteTeam "ESP"]
[BlackTeam "GER"]
[WhiteClock "0:00:00"]
[BlackClock "0:00:09"]

1. e4 {[%clk 0:03:00]}  c6 {[%clk 0:02:59]} 2. Nf3 {[%clk 0:02:59]}  d5 {[%clk 0:03:00]} 3. d3 {[%clk 0:02:59]}  dxe4 {[%clk 0:03:00]} 4. dxe4 {[%clk 0:03:00]}  Qxd1+ {[%clk 0:03:01]} 5. Kxd1 {[%clk 0:03:01]}  Nd7 {[%clk 0:03:02]} 6. Bc4 {[%clk 0:02:59]}  Ngf6 {[%clk 0:03:01]} 7. Re1 {[%clk 0:02:58]}  Nc5 {[%clk 0:02:59]} 8. Nfd2 {[%clk 0:02:59]}  b5 {[%clk 0:02:50]} 9. Bf1 {[%clk 0:02:54]}  e5 {[%clk 0:02:44]} 10. f3 {[%clk 0:02:53]}  Be6 {[%clk 0:02:43]} 11. c3 {[%clk 0:02:45]}  O-O-O {[%clk 0:02:35]} 12. Kc2 {[%clk 0:02:44]}  Nfd7 {[%clk 0:02:34]} 13. Nb3 {[%clk 0:02:37]}  f5 {[%clk 0:02:23]} 14. Bg5 {[%clk 0:02:25]}  Nf6 {[%clk 0:02:19]} 15. N1d2 {[%clk 0:02:18]}  f4 {[%clk 0:02:13]} 16. Bh4 {[%clk 0:02:12]}  Kc7 {[%clk 0:01:55]} 17. Bf2 {[%clk 0:02:09]}  Nfd7 {[%clk 0:01:55]} 18. Na5 {[%clk 0:01:45]}  a6 {[%clk 0:01:38]} 19. Rad1 {[%clk 0:01:36]}  Be7 {[%clk 0:01:34]} 20. b3 {[%clk 0:01:20]}  g5 {[%clk 0:01:30]} 21. a4 {[%clk 0:01:09]}  h5 {[%clk 0:01:19]} 22. axb5 {[%clk 0:01:07]}  axb5 {[%clk 0:01:18]} 23. b4 {[%clk 0:01:07]}  Na4 {[%clk 0:01:13]} 24. Ndb3 {[%clk 0:01:08]}  g4 {[%clk 0:01:09]} 25. Ra1 {[%clk 0:00:51]}  Rhg8 {[%clk 0:01:02]} 26. Reb1 {[%clk 0:00:36]}  Ra8 {[%clk 0:00:28]} 27. c4 {[%clk 0:00:34]}  Bxb4 {[%clk 0:00:27]} 28. cxb5 {[%clk 0:00:29]}  Bxa5 {[%clk 0:00:25]} 29. Rxa4 {[%clk 0:00:28]}  Bb6 {[%clk 0:00:25]} 30. Rxa8 {[%clk 0:00:27]}  Rxa8 {[%clk 0:00:24]} 31. Bxb6+ {[%clk 0:00:26]}  Kxb6 {[%clk 0:00:20]} 32. bxc6 {[%clk 0:00:26]}  Kxc6 {[%clk 0:00:21]} 33. Rb2 {[%clk 0:00:19]}  h4 {[%clk 0:00:17]} 34. fxg4 {[%clk 0:00:16]}  Bxg4 {[%clk 0:00:18]} 35. Nd2 {[%clk 0:00:16]}  Be6 {[%clk 0:00:17]} 36. Bb5+ {[%clk 0:00:15]}  Kd6 {[%clk 0:00:17]} 37. Nf3 {[%clk 0:00:10]}  Nc5 {[%clk 0:00:16]} 38. Nd2 {[%clk 0:00:04]}  h3 {[%clk 0:00:10]} 39. gxh3 {[%clk 0:00:04]}  Bxh3 {[%clk 0:00:11]} 40. Be2 {[%clk 0:00:03]}  Bg2 {[%clk 0:00:11]} 41. Rb6+ {[%clk 0:00:02]}  Kc7 {[%clk 0:00:11]} 42. Rb5 {[%clk 0:00:02]}  Kc6 {[%clk 0:00:11]} 43. Rb4 {[%clk 0:00:03]}  Ra2+ {[%clk 0:00:10]} 44. Kc3 {[%clk 0:00:02]}  Bxe4 {[%clk 0:00:09]} 45. Nxe4 {[%clk 0:00:01]}  Rxe2 {[%clk 0:00:09]} 46. Ng5 {[%clk 0:00:01]}  Rxh2 {[%clk 0:00:09]} 47. Nf3 {[%clk 0:00:00]}  Rh3 {[%clk 0:00:09]} 0-1

[Event "December 19 Late 2023"]
[Site "https://www.chess.com"]
[Date "2023.12.19"]
[Round "8"]
[White "Paravyan, David"]
[Black "Zakhartsov, Vladimir"]
[Result "1-0"]
[Board "10"]
[TimeControl "180+1"]
[WhiteFideId "4194985"]
[BlackFideId "4145097"]
[WhiteElo "2566"]
[BlackElo "2448"]
[WhiteTeam "FID"]
[BlackTeam "RUS"]
[WhiteClock "0:00:15"]
[BlackClock "0:00:04"]

1. e4 {[%clk 0:03:00]}  c5 {[%clk 0:02:59]} 2. Nf3 {[%clk 0:02:59]}  d6 {[%clk 0:03:00]} 3. d4 {[%clk 0:02:59]}  cxd4 {[%clk 0:03:01]} 4. Nxd4 {[%clk 0:03:00]}  Nf6 {[%clk 0:03:01]} 5. Nc3 {[%clk 0:03:00]}  a6 {[%clk 0:03:02]} 6. f3 {[%clk 0:02:59]}  e5 {[%clk 0:02:59]} 7. Nb3 {[%clk 0:02:59]}  Be7 {[%clk 0:02:54]} 8. Be3 {[%clk 0:02:55]}  Be6 {[%clk 0:02:51]} 9. Qd2 {[%clk 0:02:48]}  d5 {[%clk 0:02:44]} 10. exd5 {[%clk 0:02:47]}  Nxd5 {[%clk 0:02:45]} 11. Nxd5 {[%clk 0:02:47]}  Qxd5 {[%clk 0:02:45]} 12. Qxd5 {[%clk 0:02:46]}  Bxd5 {[%clk 0:02:46]} 13. O-O-O {[%clk 0:02:46]}  Bc6 {[%clk 0:02:46]} 14. Na5 {[%clk 0:02:46]}  Bd8 {[%clk 0:02:32]} 15. Nc4 {[%clk 0:02:44]}  Bc7 {[%clk 0:02:32]} 16. Bb6 {[%clk 0:02:33]}  Bxb6 {[%clk 0:02:29]} 17. Nxb6 {[%clk 0:02:33]}  Ra7 {[%clk 0:02:30]} 18. Nc8 {[%clk 0:02:31]}  Ra8 {[%clk 0:02:30]} 19. Nb6 {[%clk 0:02:31]}  Ra7 {[%clk 0:02:30]} 20. Bc4 {[%clk 0:02:32]}  O-O {[%clk 0:02:05]} 21. Rhe1 {[%clk 0:02:32]}  Bb5 {[%clk 0:02:05]} 22. Rxe5 {[%clk 0:02:25]}  Bxc4 {[%clk 0:02:05]} 23. Nxc4 {[%clk 0:02:25]}  b5 {[%clk 0:02:05]} 24. Na5 {[%clk 0:02:25]}  Rc7 {[%clk 0:02:04]} 25. a3 {[%clk 0:02:17]}  g6 {[%clk 0:02:02]} 26. Rd6 {[%clk 0:02:14]}  Kg7 {[%clk 0:01:58]} 27. c3 {[%clk 0:02:13]}  h5 {[%clk 0:01:57]} 28. Kc2 {[%clk 0:02:10]}  h4 {[%clk 0:01:57]} 29. Kb3 {[%clk 0:02:10]}  h3 {[%clk 0:01:52]} 30. gxh3 {[%clk 0:02:05]}  Nd7 {[%clk 0:01:49]} 31. Red5 {[%clk 0:02:02]}  Nc5+ {[%clk 0:01:41]} 32. Kb4 {[%clk 0:02:00]}  Rfc8 {[%clk 0:01:33]} 33. Rd8 {[%clk 0:01:38]}  Na4 {[%clk 0:01:29]} 34. Rxc8 {[%clk 0:01:36]}  Rxc8 {[%clk 0:01:30]} 35. Rd2 {[%clk 0:01:20]}  Nb6 {[%clk 0:01:18]} 36. Rd6 {[%clk 0:01:17]}  Na4 {[%clk 0:01:18]} 37. c4 {[%clk 0:01:04]}  Nxb2 {[%clk 0:01:15]} 38. c5 {[%clk 0:01:04]}  Na4 {[%clk 0:01:09]} 39. Nb7 {[%clk 0:00:43]}  Rc7 {[%clk 0:00:54]} 40. c6 {[%clk 0:00:42]}  Nb2 {[%clk 0:00:53]} 41. Nd8 {[%clk 0:00:30]}  Kf8 {[%clk 0:00:50]} 42. Rd7 {[%clk 0:00:14]}  Rxd7 {[%clk 0:00:25]} 43. cxd7 {[%clk 0:00:15]}  Ke7 {[%clk 0:00:25]} 44. Nxf7 {[%clk 0:00:16]}  Kxd7 {[%clk 0:00:26]} 45. Ne5+ {[%clk 0:00:16]}  Ke6 {[%clk 0:00:20]} 46. Nxg6 {[%clk 0:00:14]}  Nd3+ {[%clk 0:00:07]} 47. Kc3 {[%clk 0:00:14]}  Ne1 {[%clk 0:00:06]} 48. Nh4 {[%clk 0:00:14]}  Ke5 {[%clk 0:00:04]} 49. Kd2 {[%clk 0:00:14]}  a5 {[%clk 0:00:03]} 50. Kxe1 {[%clk 0:00:14]}  b4 {[%clk 0:00:02]} 51. axb4 {[%clk 0:00:14]}  a4 {[%clk 0:00:03]} 52. Kd2 {[%clk 0:00:15]}  a3 {[%clk 0:00:04]} 53. Kc3 {[%clk 0:00:15]}  a2 {[%clk 0:00:04]} 54. Kb2 {[%clk 0:00:15]} 1-0

[Event "December 19 Late 2023"]
[Site "https://www.chess.com"]
[Date "2023.12.19"]
[Round "8"]
[White "Bortnyk, Olexandr"]
[Black "Zhigalko, Sergei"]
[Result "1-0"]
[Board "11"]
[TimeControl "180+1"]
[WhiteFideId "14120828"]
[BlackFideId "13502956"]
[WhiteElo "2731"]
[BlackElo "2616"]
[WhiteTeam "UKR"]
[BlackTeam "BLR"]
[WhiteClock "0:00:59"]
[BlackClock "0:00:02"]

1. e4 {[%clk 0:03:00]}  c5 {[%clk 0:02:59]} 2. c3 {[%clk 0:02:54]}  Nf6 {[%clk 0:02:55]} 3. e5 {[%clk 0:02:54]}  Nd5 {[%clk 0:02:55]} 4. Nf3 {[%clk 0:02:55]}  d6 {[%clk 0:02:55]} 5. d4 {[%clk 0:02:37]}  cxd4 {[%clk 0:02:47]} 6. Bc4 {[%clk 0:02:37]}  Nb6 {[%clk 0:02:36]} 7. Bb3 {[%clk 0:02:37]}  Nc6 {[%clk 0:02:18]} 8. exd6 {[%clk 0:02:33]}  Qxd6 {[%clk 0:02:16]} 9. O-O {[%clk 0:02:33]}  Be6 {[%clk 0:02:14]} 10. Na3 {[%clk 0:02:23]}  a6 {[%clk 0:01:42]} 11. Re1 {[%clk 0:02:23]}  Bxb3 {[%clk 0:00:58]} 12. Qxb3 {[%clk 0:02:19]}  Na5 {[%clk 0:00:58]} 13. Qd1 {[%clk 0:02:19]}  d3 {[%clk 0:00:42]} 14. Be3 {[%clk 0:01:48]}  e6 {[%clk 0:00:36]} 15. Bd4 {[%clk 0:01:46]}  Qc7 {[%clk 0:00:23]} 16. Qxd3 {[%clk 0:01:30]}  Bxa3 {[%clk 0:00:23]} 17. bxa3 {[%clk 0:01:31]}  O-O-O {[%clk 0:00:23]} 18. Qe4 {[%clk 0:01:20]}  Nac4 {[%clk 0:00:14]} 19. Bxg7 {[%clk 0:01:16]}  Rhg8 {[%clk 0:00:14]} 20. Bf6 {[%clk 0:01:12]}  Rd5 {[%clk 0:00:12]} 21. Qxh7 {[%clk 0:01:12]}  Rg6 {[%clk 0:00:06]} 22. Qh8+ {[%clk 0:01:09]}  Kd7 {[%clk 0:00:06]} 23. Rad1 {[%clk 0:01:02]}  Nd6 {[%clk 0:00:06]} 24. Rxd5 {[%clk 0:00:59]}  Nxd5 {[%clk 0:00:02]} 25. Ne5# {[%clk 0:00:59]} 1-0

[Event "December 19 Late 2023"]
[Site "https://www.chess.com"]
[Date "2023.12.19"]
[Round "8"]
[White "Sun, Rick"]
[Black "Grigoriants, Sergey"]
[Result "0-1"]
[Board "18"]
[TimeControl "180+1"]
[WhiteFideId "30909481"]
[BlackFideId "4130804"]
[WhiteElo "2169"]
[BlackElo "2532"]
[WhiteTeam "USA"]
[BlackTeam "HUN"]
[WhiteClock "0:00:08"]
[BlackClock "0:00:55"]

1. d4 {[%clk 0:03:00]}  Nf6 {[%clk 0:02:55]} 2. Nc3 {[%clk 0:03:00]}  d5 {[%clk 0:02:55]} 3. Bf4 {[%clk 0:03:01]}  Bf5 {[%clk 0:02:54]} 4. e3 {[%clk 0:03:01]}  e6 {[%clk 0:02:54]} 5. f3 {[%clk 0:03:01]}  c6 {[%clk 0:02:51]} 6. g4 {[%clk 0:03:01]}  Bg6 {[%clk 0:02:51]} 7. h4 {[%clk 0:03:01]}  h5 {[%clk 0:02:52]} 8. g5 {[%clk 0:03:01]}  Nfd7 {[%clk 0:02:50]} 9. Bd3 {[%clk 0:03:02]}  Bxd3 {[%clk 0:02:48]} 10. Qxd3 {[%clk 0:03:03]}  g6 {[%clk 0:02:48]} 11. Nge2 {[%clk 0:03:02]}  Bg7 {[%clk 0:02:48]} 12. O-O-O {[%clk 0:03:02]}  Nb6 {[%clk 0:02:45]} 13. Be5 {[%clk 0:02:59]}  Bxe5 {[%clk 0:02:40]} 14. dxe5 {[%clk 0:03:00]}  N8d7 {[%clk 0:02:37]} 15. f4 {[%clk 0:02:55]}  Qe7 {[%clk 0:02:36]} 16. e4 {[%clk 0:02:51]}  a6 {[%clk 0:02:20]} 17. Qf3 {[%clk 0:02:16]}  O-O-O {[%clk 0:02:12]} 18. exd5 {[%clk 0:02:14]}  cxd5 {[%clk 0:02:12]} 19. Rd4 {[%clk 0:02:11]}  Kb8 {[%clk 0:02:12]} 20. Rhd1 {[%clk 0:02:08]}  Rc8 {[%clk 0:02:12]} 21. Kb1 {[%clk 0:02:07]}  Rc6 {[%clk 0:02:09]} 22. Na4 {[%clk 0:01:42]}  Nc4 {[%clk 0:02:04]} 23. Nc1 {[%clk 0:01:04]}  Rhc8 {[%clk 0:01:56]} 24. Nb3 {[%clk 0:01:00]}  b5 {[%clk 0:01:30]} 25. Nc3 {[%clk 0:01:00]}  Nxb2 {[%clk 0:01:30]} 26. Kxb2 {[%clk 0:01:01]}  Rxc3 {[%clk 0:01:30]} 27. Qxc3 {[%clk 0:00:58]}  Rxc3 {[%clk 0:01:31]} 28. Kxc3 {[%clk 0:00:59]}  Qa3 {[%clk 0:01:30]} 29. Kd3 {[%clk 0:00:50]}  Nc5+ {[%clk 0:01:24]} 30. Ke2 {[%clk 0:00:41]}  Ne4 {[%clk 0:01:24]} 31. Rxe4 {[%clk 0:00:20]}  dxe4 {[%clk 0:01:24]} 32. Rd8+ {[%clk 0:00:21]}  Kc7 {[%clk 0:01:23]} 33. Rd4 {[%clk 0:00:17]}  Qxa2 {[%clk 0:01:20]} 34. Rxe4 {[%clk 0:00:16]}  Qxc2+ {[%clk 0:01:20]} 35. Nd2 {[%clk 0:00:17]}  a5 {[%clk 0:01:17]} 36. Ke3 {[%clk 0:00:16]}  a4 {[%clk 0:01:18]} 37. Nf3 {[%clk 0:00:15]}  a3 {[%clk 0:01:09]} 38. Nd4 {[%clk 0:00:15]}  Qc3+ {[%clk 0:01:06]} 39. Ke2 {[%clk 0:00:15]}  Qc4+ {[%clk 0:01:06]} 40. Ke3 {[%clk 0:00:13]}  a2 {[%clk 0:01:06]} 41. f5 {[%clk 0:00:10]}  a1=Q {[%clk 0:01:04]} 42. fxe6 {[%clk 0:00:10]}  Qe1+ {[%clk 0:01:00]} 43. Kf4 {[%clk 0:00:10]}  Qf2+ {[%clk 0:00:57]} 44. Nf3 {[%clk 0:00:10]}  Qc1+ {[%clk 0:00:55]} 45. Re3 {[%clk 0:00:08]}  Qcxe3# {[%clk 0:00:55]} 0-1

[Event "December 19 Late 2023"]
[Site "https://www.chess.com"]
[Date "2023.12.19"]
[Round "8"]
[White "Melkumyan, Hrant"]
[Black "Solon, Nathan"]
[Result "0-1"]
[Board "20"]
[TimeControl "180+1"]
[WhiteFideId "13302485"]
[BlackFideId "2017229"]
[WhiteElo "2604"]
[BlackElo "2672"]
[WhiteTeam "ARM"]
[BlackTeam "USA"]
[WhiteClock "0:00:00"]
[BlackClock "0:00:23"]

1. c4 {[%clk 0:02:57]}  c6 {[%clk 0:02:59]} 2. Nf3 {[%clk 0:02:55]}  d5 {[%clk 0:03:00]} 3. d4 {[%clk 0:02:55]}  Nf6 {[%clk 0:02:59]} 4. e3 {[%clk 0:02:56]}  e6 {[%clk 0:02:58]} 5. Bd3 {[%clk 0:02:55]}  dxc4 {[%clk 0:02:55]} 6. Bxc4 {[%clk 0:02:55]}  Nbd7 {[%clk 0:02:55]} 7. O-O {[%clk 0:02:54]}  Bd6 {[%clk 0:02:55]} 8. Qe2 {[%clk 0:02:41]}  O-O {[%clk 0:02:51]} 9. Rd1 {[%clk 0:02:41]}  Qc7 {[%clk 0:02:48]} 10. e4 {[%clk 0:02:34]}  e5 {[%clk 0:02:48]} 11. Bg5 {[%clk 0:02:20]}  exd4 {[%clk 0:02:43]} 12. Bxf6 {[%clk 0:02:20]}  gxf6 {[%clk 0:02:42]} 13. Nxd4 {[%clk 0:02:12]}  Ne5 {[%clk 0:02:32]} 14. Nd2 {[%clk 0:01:45]}  Kh8 {[%clk 0:01:52]} 15. g3 {[%clk 0:00:59]}  b5 {[%clk 0:01:29]} 16. Bb3 {[%clk 0:00:54]}  a6 {[%clk 0:01:29]} 17. Nf5 {[%clk 0:00:51]}  Bxf5 {[%clk 0:01:27]} 18. exf5 {[%clk 0:00:52]}  Rad8 {[%clk 0:01:23]} 19. Ne4 {[%clk 0:00:52]}  Qe7 {[%clk 0:01:16]} 20. Qh5 {[%clk 0:00:46]}  c5 {[%clk 0:01:10]} 21. Bd5 {[%clk 0:00:42]}  c4 {[%clk 0:01:04]} 22. Kg2 {[%clk 0:00:31]}  Bc5 {[%clk 0:00:58]} 23. Nc3 {[%clk 0:00:13]}  Nd3 {[%clk 0:00:53]} 24. Bf3 {[%clk 0:00:07]}  Nxf2 {[%clk 0:00:42]} 25. Nd5 {[%clk 0:00:08]}  Qe5 {[%clk 0:00:33]} 26. Qh6 {[%clk 0:00:05]}  Ng4 {[%clk 0:00:23]} 27. Bxg4 {[%clk 0:00:00]}  Rxd5 {[%clk 0:00:23]} 0-1

[Event "December 19 Late 2023"]
[Site "https://www.chess.com"]
[Date "2023.12.19"]
[Round "8"]
[White "Beerdsen, Thomas"]
[Black "slidingknight2775"]
[Result "1-0"]
[Board "22"]
[TimeControl "180+1"]
[WhiteFideId "1030108"]
[WhiteElo "2550"]
[BlackElo "2660"]
[WhiteTeam "NED"]
[WhiteClock "0:02:02"]
[BlackClock "0:00:06"]

1. e4 {[%clk 0:03:00]}  c5 {[%clk 0:02:58]} 2. Nf3 {[%clk 0:03:00]}  e6 {[%clk 0:02:58]} 3. d4 {[%clk 0:03:01]}  cxd4 {[%clk 0:02:59]} 4. Bg5 {[%clk 0:03:01]}  Nf6 {[%clk 0:03:00]} 5. e5 {[%clk 0:03:02]}  h6 {[%clk 0:02:56]} 6. Bh4 {[%clk 0:03:02]}  g5 {[%clk 0:02:51]} 7. exf6 {[%clk 0:03:03]}  gxh4 {[%clk 0:02:51]} 8. Qxd4 {[%clk 0:03:03]}  Qb6 {[%clk 0:02:31]} 9. Qxb6 {[%clk 0:02:57]}  axb6 {[%clk 0:02:32]} 10. Nbd2 {[%clk 0:02:52]}  d6 {[%clk 0:02:25]} 11. c3 {[%clk 0:02:44]}  h5 {[%clk 0:02:16]} 12. a4 {[%clk 0:02:42]}  Rh6 {[%clk 0:02:14]} 13. Bb5+ {[%clk 0:02:42]}  Bd7 {[%clk 0:02:12]} 14. O-O {[%clk 0:02:40]}  Rxf6 {[%clk 0:02:09]} 15. Nc4 {[%clk 0:02:40]}  Bxb5 {[%clk 0:01:41]} 16. axb5 {[%clk 0:02:41]}  Rxa1 {[%clk 0:01:42]} 17. Rxa1 {[%clk 0:02:41]}  Kd8 {[%clk 0:01:40]} 18. Nxb6 {[%clk 0:02:40]}  h3 {[%clk 0:01:35]} 19. Ra8 {[%clk 0:02:37]}  Bh6 {[%clk 0:00:39]} 20. Rxb8+ {[%clk 0:01:56]}  Kc7 {[%clk 0:00:38]} 21. Nd7 {[%clk 0:01:57]}  Kxd7 {[%clk 0:00:29]} 22. Rxb7+ {[%clk 0:01:57]}  Kc8 {[%clk 0:00:30]} 23. Rb6 {[%clk 0:01:58]}  hxg2 {[%clk 0:00:28]} 24. Kxg2 {[%clk 0:01:56]}  Bf4 {[%clk 0:00:24]} 25. c4 {[%clk 0:01:51]}  Kc7 {[%clk 0:00:23]} 26. Rc6+ {[%clk 0:01:51]}  Kb7 {[%clk 0:00:24]} 27. b4 {[%clk 0:01:51]}  Rg6+ {[%clk 0:00:21]} 28. Kf1 {[%clk 0:01:51]}  Rf6 {[%clk 0:00:18]} 29. c5 {[%clk 0:01:50]}  dxc5 {[%clk 0:00:18]} 30. bxc5 {[%clk 0:01:51]}  Rf5 {[%clk 0:00:18]} 31. Nd4 {[%clk 0:01:45]}  Rd5 {[%clk 0:00:17]} 32. Nb3 {[%clk 0:01:45]}  Bc7 {[%clk 0:00:18]} 33. Ra6 {[%clk 0:01:45]}  Rd3 {[%clk 0:00:12]} 34. c6+ {[%clk 0:01:45]}  Kb8 {[%clk 0:00:08]} 35. Nc5 {[%clk 0:01:46]}  Rd1+ {[%clk 0:00:03]} 36. Ke2 {[%clk 0:01:46]}  Rd8 {[%clk 0:00:01]} 37. Nd7+ {[%clk 0:01:47]}  Rxd7 {[%clk 0:00:01]} 38. cxd7 {[%clk 0:01:48]}  Bd8 {[%clk 0:00:02]} 39. Rc6 {[%clk 0:01:48]}  Kb7 {[%clk 0:00:02]} 40. Rc8 {[%clk 0:01:49]}  Bb6 {[%clk 0:00:03]} 41. d8=Q {[%clk 0:01:49]}  Bxd8 {[%clk 0:00:03]} 42. Rxd8 {[%clk 0:01:50]}  Kb6 {[%clk 0:00:04]} 43. Rg8 {[%clk 0:01:51]}  Kxb5 {[%clk 0:00:05]} 44. Rf8 {[%clk 0:01:52]}  f5 {[%clk 0:00:05]} 45. Rf7 {[%clk 0:01:53]}  Kc5 {[%clk 0:00:06]} 46. Rh7 {[%clk 0:01:53]}  h4 {[%clk 0:00:06]} 47. Rh5 {[%clk 0:01:54]}  Kd5 {[%clk 0:00:06]} 48. Rxh4 {[%clk 0:01:55]}  Ke5 {[%clk 0:00:07]} 49. Ke3 {[%clk 0:01:55]}  Kf6 {[%clk 0:00:07]} 50. f4 {[%clk 0:01:56]}  Kg6 {[%clk 0:00:07]} 51. Rh3 {[%clk 0:01:57]}  Kg7 {[%clk 0:00:06]} 52. Rg3+ {[%clk 0:01:58]}  Kf6 {[%clk 0:00:07]} 53. Kd4 {[%clk 0:01:58]}  Kf7 {[%clk 0:00:07]} 54. Ke5 {[%clk 0:01:59]}  Ke7 {[%clk 0:00:07]} 55. Rg5 {[%clk 0:01:59]}  Kf8 {[%clk 0:00:08]} 56. h4 {[%clk 0:02:00]}  Kf7 {[%clk 0:00:08]} 57. h5 {[%clk 0:02:01]}  Kf8 {[%clk 0:00:03]} 58. h6 {[%clk 0:02:02]}  Ke7 {[%clk 0:00:04]} 59. h7 {[%clk 0:02:03]}  Kf7 {[%clk 0:00:05]} 60. h8=N+ {[%clk 0:02:02]}  Kf8 {[%clk 0:00:06]} 61. Kxe6 {[%clk 0:02:01]}  Ke8 {[%clk 0:00:06]} 62. Rg8# {[%clk 0:02:02]} 1-0

[Event "December 19 Late 2023"]
[Site "https://www.chess.com"]
[Date "2023.12.19"]
[Round "8"]
[White "Melian, Juan Sebastian"]
[Black "Durarbayli, Vasif"]
[Result "0-1"]
[Board "23"]
[TimeControl "180+1"]
[WhiteFideId "3706575"]
[BlackFideId "13402935"]
[WhiteElo "2098"]
[BlackElo "2551"]
[WhiteTeam "PAR"]
[BlackTeam "AZE"]
[WhiteClock "0:00:06"]
[BlackClock "0:00:28"]

1. e4 {[%clk 0:03:00]}  e5 {[%clk 0:02:58]} 2. Nf3 {[%clk 0:02:54]}  Nc6 {[%clk 0:02:58]} 3. Bc4 {[%clk 0:02:54]}  Bc5 {[%clk 0:02:57]} 4. c3 {[%clk 0:02:55]}  Nf6 {[%clk 0:02:57]} 5. d4 {[%clk 0:02:48]}  exd4 {[%clk 0:02:57]} 6. b4 {[%clk 0:02:49]}  Bb6 {[%clk 0:02:47]} 7. e5 {[%clk 0:02:49]}  d5 {[%clk 0:02:46]} 8. exf6 {[%clk 0:02:49]}  dxc4 {[%clk 0:02:46]} 9. Qe2+ {[%clk 0:02:49]}  Be6 {[%clk 0:02:43]} 10. b5 {[%clk 0:02:49]}  d3 {[%clk 0:02:27]} 11. Qe4 {[%clk 0:02:49]}  Qxf6 {[%clk 0:02:05]} 12. bxc6 {[%clk 0:02:46]}  O-O {[%clk 0:02:03]} 13. Bg5 {[%clk 0:02:41]}  Bf5 {[%clk 0:01:58]} 14. Bxf6 {[%clk 0:02:19]}  Bxe4 {[%clk 0:01:58]} 15. Bd4 {[%clk 0:01:59]}  Rfe8 {[%clk 0:01:45]} 16. Kd1 {[%clk 0:01:44]}  Bxc6 {[%clk 0:01:42]} 17. Nbd2 {[%clk 0:01:30]}  Re2 {[%clk 0:01:12]} 18. Bxb6 {[%clk 0:00:46]}  axb6 {[%clk 0:01:11]} 19. Rf1 {[%clk 0:00:32]}  Ra3 {[%clk 0:01:03]} 20. Nd4 {[%clk 0:00:31]}  Ba4+ {[%clk 0:01:00]} 21. Kc1 {[%clk 0:00:31]}  Rxc3+ {[%clk 0:00:59]} 22. Kb2 {[%clk 0:00:30]}  Rc2+ {[%clk 0:00:54]} 23. Nxc2 {[%clk 0:00:26]}  Rxd2 {[%clk 0:00:54]} 24. Rac1 {[%clk 0:00:22]}  dxc2 {[%clk 0:00:42]} 25. Rfe1 {[%clk 0:00:19]}  Kf8 {[%clk 0:00:35]} 26. Re4 {[%clk 0:00:15]}  b5 {[%clk 0:00:35]} 27. Rf4 {[%clk 0:00:12]}  g5 {[%clk 0:00:31]} 28. Rf3 {[%clk 0:00:11]}  b4 {[%clk 0:00:29]} 29. Rf5 {[%clk 0:00:06]}  c3+ {[%clk 0:00:27]} 30. Ka1 {[%clk 0:00:06]}  Rd1 {[%clk 0:00:28]} 0-1